bitfinex-derivatives/quotes_ETHF0:USTF0_20260308
["timestamp","ask_amount","ask_price","bid_price","bid_amount"]
[1772978612354,6.8667449,1941.1,1940.5,1.62591772]
[1772978612556,1.48075211,1941.1,1940.5,1.62591772]
[1772978614863,1.55662492,1941.8,1940.5,1.62591772]
[1772978615363,1.55662492,1941.3,1940.5,1.62591772]
[1772978616460,1.55662492,1941.3,1940.6,1.55701895]
[1772978617657,1.55662492,1941.3,1940.7,1.55701895]
[1772978621563,1.55662492,1941.6,1940.7,1.55701895]
[1772978621958,5.65119967,1941.6,1940.7,1.55701895]
[1772978622159,1.55662492,1942.0,1940.9,1.55701895]
[1772978622469,1.55662492,1942.0,1941.2,1.55701895]
[1772978622668,1.55662492,1942.1,1941.2,1.55701895]
[1772978622869,1.55662492,1942.1,1941.3,1.55701895]
[1772978623670,1.56206939,1942.3,1941.3,1.55701895]
[1772978624070,1.56206939,1942.3,1941.4,1.55701895]
[1772978627060,1.55662492,1942.9,1941.6,1.55701895]
[1772978627269,1.55662492,1942.9,1941.8,1.55701895]
[1772978627670,1.55662492,1942.7,1941.8,1.55701895]
[1772978628073,1.56120846,1942.7,1941.8,1.56254677]
[1772978628467,1.55662492,1942.5,1941.8,1.56254677]
[1772978637678,0.00458354,1942.7,1941.8,1.56254677]
[1772978637880,1.55662492,1942.6,1941.8,1.56254677]
[1772978638282,0.00458354,1942.7,1942.0,1.55701895]
[1772978638476,1.55662492,1942.9,1942.0,1.55701895]
[1772978638674,1.55662492,1943.5,1942.0,1.55701895]
[1772978638980,5.8316945,1943.4,1942.0,1.55701895]
[1772978639182,1.55662492,1943.3,1942.0,1.55701895]
[1772978639376,1.55662492,1943.3,1942.1,1.55701895]
[1772978639581,1.56033707,1943.3,1942.1,1.55701895]
[1772978640185,1.55662492,1943.1,1942.1,1.55701895]
[1772978642084,1.55662492,1942.9,1941.9,1.55701895]
[1772978642484,1.55662492,1942.7,1941.9,1.55701895]
[1772978643187,1.84295119,1942.5,1941.9,1.55701895]
[1772978643381,1.84295119,1942.7,1941.9,1.55701895]
[1772978646281,1.79547009,1942.5,1941.9,1.55701895]
[1772978647789,1.79547009,1943.1,1941.9,1.55701895]
[1772978647988,1.79547009,1943.1,1942.0,1.95727017]
[1772978648290,1.79547009,1942.9,1942.0,1.95727017]
[1772978648589,1.79547009,1942.7,1942.0,1.95727017]
[1772978648789,1.79547009,1942.7,1941.9,1.95727017]
[1772978649090,1.79547009,1942.5,1941.9,1.95727017]
[1772978650984,0.82674547,1942.3,1941.8,0.00552782]
[1772978654293,0.82674547,1942.3,1941.5,15.2547883]
[1772978654694,0.82674547,1942.3,1941.6,1.95727017]
[1772978655295,0.82674547,1942.3,1941.6,1.9633003]
[1772978655894,0.82674547,1942.3,1941.7,1.95727017]
[1772978656296,0.82674547,1942.3,1941.6,1.9633003]
[1772978658596,1.79547009,1942.1,1941.6,1.9633003]
[1772978661797,1.79547009,1942.1,1941.6,0.00603013]
[1772978663590,1.79547009,1942.2,1941.6,1.9633003]
[1772978664197,1.79547009,1942.2,1941.7,1.95727017]
[1772978667296,6.485,1943.2,1941.7,1.95727017]
[1772978667601,1.79547009,1943.0,1941.8,1.95727017]
[1772978667802,1.79547009,1943.0,1941.9,1.95727017]
[1772978668003,1.79547009,1942.8,1941.9,1.95727017]
[1772978668704,1.79547009,1942.8,1942.0,1.95727017]
[1772978669604,1.79547009,1942.9,1942.0,15.06427017]
[1772978669795,1.79547009,1943.0,1942.2,1.95727017]
[1772978670501,1.79547009,1943.2,1942.2,1.95727017]
[1772978670704,1.79547009,1943.2,1942.3,1.95727017]
[1772978670903,1.79547009,1943.1,1942.3,1.95727017]
[1772978672506,2.2588183,1943.3,1942.3,1.95727017]
[1772978672702,2.2588183,1943.3,1942.4,2.29511874]
[1772978674198,2.2588183,1943.3,1942.5,2.29511874]
[1772978677107,2.2588183,1943.3,1942.6,2.29511874]
[1772978680310,2.25510615,1943.5,1942.6,2.29511874]
[1772978681311,2.25871674,1943.5,1942.6,2.29511874]
[1772978683209,0.00361059,1943.5,1942.6,2.29511874]
[1772978683503,2.25510615,1943.7,1942.8,2.29511874]
[1772978683708,2.25510615,1944.3,1942.9,2.29511874]
[1772978683909,2.25510615,1944.3,1943.1,2.29511874]
[1772978684110,2.25510615,1944.2,1943.1,2.29511874]
[1772978684311,2.25510615,1944.2,1943.2,2.29511874]
[1772978684312,2.25937817,1944.2,1943.2,2.29511874]
[1772978684611,2.25937817,1944.2,1943.3,2.29511874]
[1772978685509,2.25937817,1944.2,1943.1,13.30388314]
[1772978685714,2.25510615,1944.0,1943.1,2.30148375]
[1772978686115,2.25510615,1943.8,1943.1,2.30148375]
[1772978687107,2.25510615,1943.8,1942.9,2.29511874]
[1772978687311,2.25510615,1943.6,1942.9,2.29511874]
[1772978687715,2.25510615,1943.4,1942.8,2.29511874]
[1772978687914,2.25510615,1943.4,1942.6,2.29511874]
[1772978688311,2.25510615,1943.4,1942.6,2.30110347]
[1772978688512,2.25510615,1943.2,1942.6,2.30110347]
[1772978690710,2.25510615,1943.7,1942.6,2.30110347]
[1772978691107,2.25510615,1943.6,1942.6,2.30110347]
[1772978691514,2.25510615,1943.4,1942.6,2.30110347]
[1772978695218,2.25510615,1943.4,1942.7,2.29511874]
[1772978696422,2.25510615,1943.4,1942.8,2.29511874]
[1772978697524,2.25510615,1943.4,1942.9,2.29511874]
[1772978700323,2.25510615,1943.4,1943.0,2.29511874]
[1772978700529,2.25510615,1943.8,1943.0,2.29511874]
[1772978700927,2.25510615,1943.6,1943.0,2.29511874]
[1772978704134,2.65599609,1943.4,1942.7,30.3029658]
[1772978704332,2.65599609,1943.4,1942.6,2.48771383]
[1772978704526,2.53858457,1943.2,1942.6,2.48771383]
[1772978706234,2.53858457,1943.9,1942.6,2.48771383]
[1772978706630,2.53858457,1943.8,1942.6,2.48771383]
[1772978707033,2.53858457,1943.6,1942.6,2.48771383]
[1772978707426,2.53858457,1943.6,1942.7,13.176]
[1772978707635,2.53858457,1943.7,1942.8,2.58423471]
[1772978708036,2.53858457,1943.6,1942.8,2.58423471]
[1772978708734,2.53858457,1943.6,1942.8,18.71295001]
[1772978708934,2.53858457,1943.6,1942.9,2.58423471]
[1772978709138,2.53858457,1944.1,1942.9,2.58423471]
[1772978709537,2.53858457,1944.0,1943.0,2.58423471]
[1772978711740,2.53858457,1944.0,1943.1,2.58423471]
[1772978712343,2.53858457,1944.0,1943.3,2.58423471]
[1772978713143,2.53858457,1944.0,1943.3,15.94902861]
[1772978713443,2.53858457,1944.0,1943.4,2.58423471]
[1772978713842,2.53858457,1944.1,1943.4,2.58423471]
[1772978714043,2.53858457,1944.1,1943.5,2.58423471]
[1772978715337,2.53858457,1944.1,1943.6,2.58423471]
[1772978715638,0.25707,1945.1,1943.6,2.58423471]
[1772978715639,2.53858457,1945.4,1943.8,2.58423471]
[1772978715842,2.53858457,1945.4,1944.3,2.58423471]
[1772978716050,2.53858457,1944.8,1944.3,2.58423471]
[1772978716739,2.53858457,1945.0,1944.3,2.59074022]
[1772978717047,2.53858457,1944.8,1944.3,2.59074022]
[1772978717247,2.53858457,1945.0,1944.3,2.59074022]
[1772978717450,2.53858457,1945.0,1944.3,0.00650551]
[1772978717745,2.53858457,1944.8,1944.3,2.59074022]
[1772978718845,2.53858457,1944.8,1944.3,0.00650551]
[1772978719445,2.53858457,1944.8,1944.3,2.59074022]
[1772978720444,0.00401198,1945.0,1944.3,2.59074022]
[1772978720647,2.54259655,1945.0,1944.3,2.59074022]
[1772978721742,0.00401198,1945.0,1944.3,2.59074022]
[1772978721940,2.54259655,1945.0,1944.3,2.59074022]
[1772978722844,2.53858457,1944.8,1944.3,0.00650551]
[1772978723647,2.53858457,1944.8,1943.8,13.3647939]
[1772978723852,2.53858457,1944.6,1943.9,2.58423471]
[1772978724653,2.53858457,1944.6,1943.9,2.59089841]
[1772978724947,2.54259655,1945.0,1943.9,2.59089841]
[1772978732354,2.54259655,1945.0,1944.0,2.58423471]
[1772978732559,2.54259655,1945.0,1944.2,2.58423471]
[1772978733154,2.37102973,1944.8,1944.0,2.47419763]
[1772978733655,2.37102973,1944.6,1944.0,2.47419763]
[1772978734261,2.37102973,1944.9,1944.0,2.47419763]
[1772978735264,2.37102973,1944.7,1943.9,2.48086133]
[1772978735756,2.37102973,1944.5,1943.9,2.48086133]
[1772978739871,2.37102973,1944.9,1943.9,2.48086133]
[1772978740275,2.37102973,1944.8,1943.9,2.48086133]
[1772978740667,2.37102973,1944.6,1943.9,2.48086133]
[1772978742070,2.37102973,1944.6,1943.9,0.0066637]
[1772978742275,2.37102973,1944.4,1943.9,0.0066637]
[1772978742669,2.37102973,1944.4,1943.9,2.48086133]
[1772978749776,2.37102973,1944.9,1943.9,2.48086133]
[1772978750180,2.37102973,1944.8,1943.9,2.48086133]
[1772978750476,2.37102973,1944.6,1943.9,2.48086133]
[1772978751275,2.37102973,1944.6,1944.0,2.47419763]
[1772978752784,2.37102973,1944.6,1944.1,2.47419763]
[1772978754382,2.37102973,1944.9,1944.1,2.47419763]
[1772978754689,7.92510651,1944.9,1944.2,2.47419763]
[1772978755787,7.92510651,1944.9,1944.3,2.47419763]
[1772978755990,2.37102973,1944.9,1944.3,2.47419763]
[1772978756789,0.00401198,1945.0,1944.3,2.47419763]
[1772978757192,0.00401198,1945.0,1944.4,2.47419763]
[1772978757193,2.37504171,1945.0,1944.4,2.47419763]
[1772978758893,2.37504171,1945.0,1944.5,2.47419763]
[1772978761198,2.37504171,1945.0,1944.4,15.83899153]
[1772978761494,2.37504171,1945.0,1944.5,2.47419763]
[1772978761691,2.37504171,1945.0,1944.4,13.3647939]
[1772978761996,2.37504171,1945.0,1944.3,2.47419763]
[1772978762296,2.37102973,1944.8,1944.3,2.47419763]
[1772978762991,0.00401198,1945.0,1944.4,2.21632208]
[1772978763196,2.35508251,1944.9,1944.4,2.21632208]
[1772978763596,2.35508251,1944.9,1944.3,13.3647939]
[1772978763799,2.35508251,1944.9,1944.3,2.21632208]
[1772978766199,2.35508251,1944.9,1944.2,13.3647939]
[1772978766398,2.35508251,1944.9,1944.3,13.3647939]
[1772978766898,2.35508251,1944.9,1944.3,15.55250832]
[1772978767100,2.35508251,1944.9,1944.4,2.18771442]
[1772978769392,0.00401198,1945.0,1944.4,2.18771442]
[1772978769594,2.29239455,1945.3,1944.4,2.18771442]
[1772978769799,2.29239455,1945.8,1944.7,2.18771442]
[1772978770002,2.29239455,1945.6,1945.0,2.18771442]
[1772978770197,2.29239455,1945.6,1944.8,15.55250832]
[1772978770402,2.29239455,1945.4,1944.8,2.18771442]
[1772978770603,0.00408835,1945.4,1944.8,2.18771442]
[1772978770799,2.2964829,1945.4,1944.9,2.18771442]
[1772978771206,0.00408835,1945.4,1944.9,2.18771442]
[1772978771404,2.29078859,1945.8,1944.9,2.18771442]
[1772978772497,0.00545452,1945.8,1944.9,2.18771442]
[1772978772702,0.00545452,1945.8,1945.1,15.55250832]
[1772978773006,0.00545452,1945.8,1945.3,2.18771442]
[1772978773200,0.00545452,1945.8,1945.3,2.19206285]
[1772978774105,2.25335894,1946.2,1945.3,2.19206285]
[1772978774106,2.25335894,1946.1,1945.3,2.19206285]
[1772978774305,6.734,1946.5,1945.3,2.19206285]
[1772978774506,2.24270068,1946.4,1945.3,2.19206285]
[1772978774707,2.24270068,1946.4,1945.4,2.18771442]
[1772978774904,0.25678,1947.3,1945.4,2.18771442]
[1772978775205,2.20895947,1947.2,1945.9,2.18771442]
[1772978775400,2.20895947,1947.2,1946.1,2.18771442]
[1772978775598,2.20895947,1947.2,1946.3,2.18771442]
[1772978775799,5.50986599,1947.1,1946.3,2.18771442]
[1772978776005,0.2567,1947.9,1946.3,2.18771442]
[1772978776006,2.21544109,1949.1,1947.3,2.18771442]
[1772978776200,2.20502627,1949.0,1947.5,2.18771442]
[1772978776406,2.20502627,1948.2,1947.7,2.18771442]
[1772978776705,2.20502627,1948.2,1947.3,2.18771442]
[1772978776899,2.19460947,1948.0,1947.3,2.19417801]
[1772978777307,5.42876674,1947.9,1947.3,2.19417801]
[1772978777503,0.00387984,1948.2,1947.3,2.19417801]
[1772978777701,0.00387984,1948.2,1947.5,2.18771442]
[1772978777902,0.00387984,1948.2,1947.7,2.18771442]
[1772978778099,2.21579433,1948.2,1947.7,2.18771442]
[1772978778304,2.21191449,1948.0,1947.3,2.19417801]
[1772978778609,2.29239455,1947.8,1946.9,2.18771442]
[1772978779005,2.29239455,1947.6,1946.9,2.18771442]
[1772978779507,2.29239455,1947.6,1946.9,2.19165237]
[1772978780997,2.29239455,1947.6,1946.9,0.00393795]
[1772978781204,2.20444104,1947.4,1946.2,53.937]
[1772978781401,2.20444104,1947.4,1946.5,2.18771442]
[1772978781608,2.20471531,1947.2,1946.5,2.18771442]
[1772978782008,2.20471531,1947.2,1945.7,0.25698]
[1772978782009,2.20471531,1947.0,1946.1,2.18771442]
[1772978782207,2.20471531,1947.0,1946.1,2.19304732]
[1772978782400,2.19147982,1946.8,1946.1,2.19304732]
[1772978782604,2.19529016,1946.8,1946.1,0.0053329]
[1772978782798,2.13619463,1946.6,1945.9,2.18771442]
[1772978783203,5.76343393,1946.7,1945.5,13.178]
[1772978783204,2.12335298,1946.4,1945.6,2.18771442]
[1772978783911,2.12335298,1946.4,1945.6,2.19169861]
[1772978784411,2.11114539,1946.6,1945.6,2.19169861]
[1772978784807,2.01917583,1946.4,1945.6,2.19169861]
[1772978785202,2.00628979,1946.2,1945.6,2.19169861]
[1772978785509,0.72379046,1946.0,1945.4,2.18771442]
[1772978785904,0.71133186,1945.9,1944.8,2.18771442]
[1772978786103,0.71101916,1946.0,1945.0,2.18771442]
[1772978786308,0.71101916,1945.9,1945.0,2.18771442]
[1772978786603,0.71101916,1945.9,1945.0,2.1938033]
[1772978786809,0.7017164,1946.4,1945.0,2.1938033]
[1772978787210,0.77899317,1946.3,1945.0,2.1938033]
[1772978787511,0.77471613,1946.1,1945.0,2.1938033]
[1772978788107,0.76187151,1945.9,1945.0,2.1938033]
[1772978788506,0.00381034,1946.8,1945.6,0.25699]
[1772978788704,2.54903455,1948.4,1946.0,2.18771442]
[1772978789108,2.29239455,1947.8,1946.2,2.18771442]
[1772978789305,2.29239455,1947.8,1946.4,2.18771442]
[1772978789503,3.75541286,1947.7,1946.4,2.18771442]
[1772978789710,3.76020002,1947.7,1946.4,2.19306612]
[1772978789912,2.29718171,1947.7,1946.4,2.19306612]
[1772978790212,0.00478716,1947.7,1946.6,2.18771442]
[1772978790610,0.00478716,1947.7,1946.8,2.18771442]
[1772978790813,0.00478716,1947.7,1947.0,2.18771442]
[1772978791412,2.29718171,1947.7,1947.0,2.18771442]
[1772978791913,0.00478716,1947.7,1947.0,2.18771442]
[1772978792111,2.29718171,1947.7,1947.0,2.18771442]
[1772978792814,0.00478716,1947.7,1947.0,2.18771442]
[1772978793806,0.00478716,1947.7,1946.5,12.861]
[1772978793807,2.35714498,1947.7,1946.5,2.18824192]
[1772978794011,2.35235782,1947.5,1946.5,2.18824192]
[1772978794414,2.35235782,1947.5,1946.6,2.18824192]
[1772978794613,2.35714498,1947.7,1946.7,2.18824192]
[1772978795914,2.35714498,1947.7,1946.8,2.18824192]
[1772978797313,19.366,1948.8,1946.7,13.085]
[1772978797314,2.35235782,1948.1,1947.0,2.18824192]
[1772978797512,2.35235782,1948.9,1947.0,2.18824192]
[1772978797715,2.35235782,1948.6,1947.2,2.18824192]
[1772978798217,2.35235782,1948.4,1947.0,7.70031205]
[1772978798523,2.35235782,1948.2,1947.1,2.18824192]
[1772978798825,5.94974969,1948.1,1947.1,2.18824192]
[1772978799118,2.35235782,1948.0,1947.1,2.18824192]
[1772978800018,2.35235782,1947.8,1947.1,2.18824192]
[1772978801211,2.35235782,1948.3,1947.1,2.18824192]
[1772978801620,2.35235782,1948.1,1947.1,2.18824192]
[1772978802422,2.35235782,1947.9,1946.7,2.18824192]
[1772978802823,2.35235782,1947.9,1946.8,2.18824192]
[1772978803222,10.54090134,1949.3,1946.8,2.18824192]
[1772978803223,2.35235782,1948.4,1947.0,2.18824192]
[1772978803521,2.35235782,1948.3,1947.2,2.18824192]
[1772978805223,2.35235782,1948.1,1947.2,2.18824192]
[1772978805523,5.90266258,1948.0,1947.2,2.18824192]
[1772978805722,2.35235782,1947.9,1947.2,2.18824192]
[1772978806119,2.35235782,1947.9,1946.8,2.18824192]
[1772978806923,2.35235782,1947.7,1946.8,2.18824192]
[1772978807523,2.35235782,1947.5,1946.8,2.18824192]
[1772978807724,2.35235782,1947.5,1946.5,2.18824192]
[1772978809820,2.35235782,1947.3,1946.5,2.18824192]
[1772978811529,2.35235782,1947.1,1946.4,0.0053517]
[1772978811831,2.35796377,1947.1,1946.4,0.0053517]
[1772978812832,2.35235782,1946.9,1946.1,2.18824192]
[1772978813829,2.35235782,1946.9,1946.1,2.19184488]
[1772978815738,2.35235782,1946.9,1946.1,0.00360296]
[1772978816029,2.35235782,1946.7,1946.1,0.00360296]
[1772978817036,0.00560595,1947.1,1946.1,2.19184488]
[1772978817037,2.35235782,1947.0,1946.1,2.19184488]
[1772978817438,2.35235782,1946.9,1946.1,2.19184488]
[1772978820439,5.61376819,1946.8,1946.1,0.00360296]
[1772978820636,2.35235782,1946.7,1946.1,0.00360296]
[1772978822136,2.35235782,1947.0,1946.1,2.19184488]
[1772978822739,0.00560595,1947.1,1946.1,2.19184488]
[1772978822941,10.37672,1947.8,1946.3,2.59253161]
[1772978822942,2.37578853,1947.4,1946.3,2.59253161]
[1772978823137,2.37578853,1947.7,1946.5,2.59253161]
[1772978823337,2.37578853,1947.7,1946.7,2.59253161]
[1772978823541,2.37578853,1947.5,1946.7,2.59253161]
[1772978824044,2.37578853,1947.3,1946.4,2.59253161]
[1772978825043,2.53817064,1947.1,1946.2,2.5286939]
[1772978825441,2.53817064,1946.9,1946.1,0.00360296]
[1772978825844,2.53817064,1946.7,1946.1,0.00360296]
[1772978827044,2.53817064,1946.7,1946.1,2.53229686]
[1772978827248,2.53817064,1947.0,1946.1,2.53229686]
[1772978827547,2.53817064,1946.9,1946.1,2.53229686]
[1772978831743,2.53817064,1946.7,1946.1,0.00360296]
[1772978833558,2.53817064,1946.7,1946.1,2.53229686]
[1772978833746,2.53817064,1946.7,1946.1,0.00360296]
[1772978834453,1.70370972,1946.7,1946.1,0.00360296]
[1772978834849,1.70370972,1946.7,1946.1,2.53229686]
[1772978835246,1.70370972,1946.7,1946.1,0.00360296]
[1772978838852,1.70370972,1946.7,1946.1,2.53229686]
[1772978840059,1.70370972,1946.7,1945.9,13.14109496]
[1772978840252,1.70370972,1946.7,1945.8,13.14109496]
[1772978840452,1.70370972,1946.7,1945.8,15.66978886]
[1772978840756,1.70370972,1946.7,1945.9,2.5286939]
[1772978841151,1.70370972,1946.7,1945.9,2.53306455]
[1772978842856,2.53817064,1946.3,1945.4,18.6574092]
[1772978843361,2.53817064,1946.1,1945.4,2.5286939]
[1772978843759,2.53817064,1945.9,1945.4,0.00417075]
[1772978843952,2.53817064,1945.9,1945.4,2.53286465]
[1772978844458,1.70340108,1945.9,1945.4,2.53286465]
[1772978844659,1.70340108,1945.9,1945.4,0.00417075]
[1772978846255,1.70340108,1945.9,1945.4,2.53286465]
[1772978846558,2.54232777,1946.1,1945.4,2.53286465]
[1772978846753,2.54232777,1946.1,1945.4,0.00417075]
[1772978847061,2.53817064,1945.9,1945.4,0.00417075]
[1772978847259,2.53817064,1945.9,1945.4,2.53286465]
[1772978848758,2.53817064,1945.9,1945.4,0.00417075]
[1772978849260,2.53817064,1945.9,1945.4,2.53286465]
[1772978850251,2.53817064,1945.9,1945.4,0.00417075]
[1772978852159,2.53817064,1945.7,1945.4,0.00417075]
[1772978854551,2.53817064,1945.7,1945.1,2.5286939]
[1772978854951,2.76843799,1945.5,1944.7,16.03620757]
[1772978855156,2.76843799,1945.5,1944.7,2.75801367]
[1772978855461,2.76843799,1945.3,1944.7,2.75801367]
[1772978855663,2.76843799,1945.3,1944.7,2.76295453]
[1772978856362,2.76843799,1945.1,1944.5,2.75801367]
[1772978856563,2.76843799,1945.1,1944.3,2.75801367]
[1772978857154,2.76843799,1945.6,1944.3,2.75801367]
[1772978857356,2.76843799,1945.6,1944.5,2.75801367]
[1772978857665,2.76843799,1945.5,1944.6,2.75801367]
[1772978858163,2.76843799,1945.9,1944.6,2.75801367]
[1772978858555,8.38267549,1945.8,1944.8,2.75801367]
[1772978859054,8.38267549,1945.8,1944.9,2.75801367]
[1772978860660,2.76843799,1945.8,1944.9,2.75801367]
[1772978860871,2.76843799,1945.8,1945.0,2.75801367]
[1772978861366,2.76843799,1945.6,1944.9,2.75801367]
[1772978861863,2.76843799,1945.4,1944.9,2.75801367]
[1772978862065,1.93359552,1945.4,1944.9,2.75801367]
[1772978862262,1.93359552,1945.4,1944.8,2.75801367]
[1772978862458,5.84544353,1945.6,1944.4,18.88672897]
[1772978862459,2.64327194,1945.2,1944.4,18.88672897]
[1772978862657,2.64327194,1945.2,1944.5,2.75801367]
[1772978866361,5.58454739,1945.1,1944.5,2.75801367]
[1772978866562,2.72322792,1945.2,1944.5,2.75801367]
[1772978871666,2.74897901,1945.6,1944.5,2.75801367]
[1772978871966,2.74897901,1945.5,1944.5,2.75801367]
[1772978872269,2.75530486,1945.3,1944.5,2.75801367]
[1772978872661,2.75348425,1945.1,1944.5,2.75801367]
[1772978872863,1.91840582,1945.1,1944.5,2.75801367]
[1772978873862,1.92464123,1944.9,1944.4,13.2781939]
[1772978874068,1.92464123,1944.9,1944.4,2.75801367]
[1772978874368,1.92464123,1944.9,1944.3,0.00650151]
[1772978874661,1.92464123,1944.9,1944.3,2.76451518]
[1772978876373,5.59093784,1944.8,1944.3,0.00650151]
[1772978876674,1.99609979,1944.7,1944.3,2.76451518]
[1772978876864,2.00198038,1944.7,1944.3,2.76451518]
[1772978878267,0.00588059,1944.7,1944.3,2.76451518]
[1772978878478,2.00859753,1944.7,1944.3,0.00650151]
[1772978878972,2.00859753,1944.7,1944.2,2.75801367]
[1772978879575,2.00859753,1944.7,1944.0,13.2781939]
[1772978879775,2.00859753,1944.7,1944.1,2.75801367]
[1772978879972,2.00859753,1944.7,1944.1,2.76371989]
[1772978880277,0.00588059,1944.7,1944.1,2.76371989]
[1772978880573,2.01303432,1944.9,1944.1,2.76371989]
[1772978880774,2.01303432,1945.1,1944.1,2.76371989]
[1772978880967,2.01303432,1945.1,1944.2,2.75801367]
[1772978881167,7.50752139,1945.1,1944.2,2.75801367]
[1772978881368,2.01870274,1945.0,1944.2,2.75801367]
[1772978881567,2.02389281,1945.0,1944.2,2.75801367]
[1772978881768,2.01819318,1944.8,1944.1,0.00570622]
[1772978882170,2.02426351,1944.6,1944.1,2.76371989]
[1772978882970,2.00851983,1944.4,1943.9,3.13452506]
[1772978883476,5.68983335,1944.3,1943.6,3.13452506]
[1772978883676,6.734,1944.2,1943.2,3.14994151]
[1772978884080,0.00561607,1944.0,1943.2,3.15555027]
[1772978884471,0.27560057,1943.8,1943.2,0.00560876]
[1772978884775,6.97044772,1943.9,1943.2,3.1751267]
[1772978885070,0.23644772,1943.6,1943.2,0.00560876]
[1772978885274,0.23644772,1943.6,1942.7,3.16951794]
[1772978885275,0.24295434,1943.6,1942.7,3.16951794]
[1772978885474,0.24851505,1943.4,1942.7,3.16951794]
[1772978885777,5.87658213,1943.3,1942.7,3.16951794]
[1772978886077,0.24736638,1943.2,1942.5,3.17009227]
[1772978886279,0.24736638,1943.2,1942.5,3.17572214]
[1772978886475,0.25288963,1943.0,1942.5,3.17572214]
[1772978886778,0.20395201,1942.8,1942.5,0.00562987]
[1772978886977,0.20395201,1942.8,1941.8,3.19456108]
[1772978887475,0.2097931,1942.6,1941.8,3.19456108]
[1772978887876,0.20919611,1942.4,1941.8,3.20026062]
[1772978888278,5.39479015,1942.3,1941.8,3.20026062]
[1772978888477,6.95087043,1942.6,1941.8,3.20026062]
[1772978888778,6.07270073,1942.5,1941.8,3.20026062]
[1772978889276,5.74634962,1942.5,1941.8,3.20026062]
[1772978890188,4.20911185,1942.5,1941.8,3.20026062]
[1772978890369,9.7170819,1943.3,1942.0,3.07270391]
[1772978890674,5.89614515,1943.2,1942.3,0.25743]
[1772978890874,5.89614515,1943.2,1942.4,3.07270391]
[1772978891175,2.99401834,1943.6,1942.4,3.07270391]
[1772978891771,2.99401834,1943.6,1942.6,3.07270391]
[1772978891967,0.00650662,1943.6,1942.6,3.07270391]
[1772978892177,8.35654136,1943.5,1942.6,3.07270391]
[1772978892378,2.98751172,1943.4,1942.6,3.07270391]
[1772978892580,2.98751172,1943.3,1942.6,3.07270391]
[1772978892779,5.78636991,1943.3,1942.6,3.07270391]
[1772978892982,2.98751172,1943.5,1942.6,3.07270391]
[1772978893383,5.78636991,1943.4,1942.6,3.07270391]
[1772978895983,8.77388163,1943.4,1942.6,3.07270391]
[1772978898083,2.98751172,1943.3,1942.6,3.07270391]
[1772978899783,2.98751172,1943.5,1942.6,3.07270391]
[1772978900185,8.69148118,1943.5,1942.6,3.07270391]
[1772978900785,2.98751172,1943.4,1942.6,3.07270391]
[1772978901187,2.98751172,1943.2,1942.6,3.07270391]
[1772978901386,5.62087365,1943.3,1942.6,3.07270391]
[1772978901589,8.85906318,1943.4,1942.6,3.07270391]
[1772978901888,2.98751172,1943.4,1942.6,3.07270391]
[1772978902086,8.85906318,1943.3,1942.6,3.07270391]
[1772978902482,2.98751172,1943.3,1942.6,3.07270391]
[1772978904083,2.98751172,1943.1,1942.6,3.07270391]
[1772978904584,2.98751172,1942.9,1942.1,3.07270391]
[1772978905691,2.98751172,1943.5,1942.1,3.07270391]
[1772978905990,2.98751172,1943.1,1942.1,3.07270391]
[1772978906389,5.72359973,1943.0,1942.3,3.07270391]
[1772978906690,9.72551172,1943.2,1942.3,3.07270391]
[1772978907689,2.98751172,1943.1,1942.3,3.07270391]
[1772978907889,2.98751172,1943.0,1942.3,3.07270391]
[1772978908586,2.98751172,1943.2,1942.3,3.07270391]
[1772978908792,2.98751172,1943.5,1942.3,3.07270391]
[1772978909193,2.98751172,1943.4,1942.3,3.07270391]
[1772978909591,5.75770621,1943.3,1942.3,3.07270391]
[1772978910789,2.98751172,1943.2,1942.3,3.07270391]
[1772978911892,2.98751172,1943.5,1942.3,3.07270391]
[1772978912295,2.98751172,1943.4,1942.4,3.07270391]
[1772978912694,8.76953387,1943.3,1942.4,3.07270391]
[1772978913096,3.41175348,1943.3,1942.4,3.07270391]
[1772978914298,3.41175348,1943.5,1942.6,3.30404181]
[1772978914700,3.41175348,1943.4,1942.6,3.30404181]
[1772978915199,5.86602365,1943.3,1942.6,3.30404181]
[1772978915499,5.89075819,1943.4,1942.6,3.30404181]
[1772978915800,3.41175348,1943.5,1942.6,3.30404181]
[1772978916304,5.89075819,1943.4,1942.6,3.30404181]
[1772978917497,9.30251167,1943.4,1942.6,3.30404181]
[1772978917899,3.41175348,1943.4,1942.6,3.30404181]
[1772978918304,3.41175348,1943.4,1942.7,3.30404181]
[1772978920197,3.41175348,1943.4,1942.8,3.30404181]
[1772978923703,3.41175348,1943.4,1942.9,3.30404181]
[1772978924405,0.00650662,1943.6,1943.1,3.30404181]
[1772978925005,3.4182601,1943.6,1943.1,3.30404181]
[1772978925408,2.33031066,1943.4,1942.7,19.43275711]
[1772978925606,2.33031066,1943.4,1942.7,3.30404181]
[1772978925806,5.42059227,1943.3,1942.7,3.30404181]
[1772978926210,6.738,1943.5,1942.7,3.30404181]
[1772978926211,0.00515626,1943.2,1942.7,3.30404181]
[1772978929808,0.28979734,1943.3,1942.7,3.30404181]
[1772978930015,0.28979734,1943.0,1942.5,3.5368834]
[1772978931207,0.00650662,1943.6,1942.5,3.5368834]
[1772978931208,0.31401921,1943.3,1942.5,3.5368834]
[1772978931615,6.17903575,1943.3,1942.5,3.5368834]
[1772978933319,0.3208627,1943.2,1942.5,3.5368834]
[1772978934517,0.3208627,1943.2,1942.6,3.52858659]
[1772978938127,0.35766362,1943.0,1942.6,3.52858659]
[1772978938327,0.35766362,1943.0,1942.6,3.51796909]
[1772978941826,0.37003394,1943.3,1942.6,3.51796909]
[1772978942126,6.23232838,1943.3,1942.6,3.51796909]
[1772978942716,5.86229444,1943.3,1942.6,3.51796909]
[1772978942917,0.375842,1943.6,1942.7,3.51889685]
[1772978943114,0.375842,1943.6,1942.8,3.51889685]
[1772978943323,5.95546565,1943.5,1942.8,3.51889685]
[1772978944328,5.95546565,1943.5,1942.9,3.51909063]
[1772978944925,0.00650662,1943.6,1942.9,3.51909063]
[1772978945124,1.88250212,1943.9,1943.1,3.54979912]
[1772978945525,7.37230197,1943.9,1943.1,3.54979912]
[1772978946128,7.3767083,1943.9,1943.1,3.54979912]
[1772978950234,2.09199136,1943.8,1943.1,3.54979912]
[1772978952234,0.00440633,1943.9,1943.1,3.54979912]
[1772978952435,0.00440633,1943.9,1943.2,3.54979912]
[1772978952635,0.00440633,1943.9,1943.2,3.55425946]
[1772978953135,0.00440633,1943.9,1943.3,3.54979912]
[1772978953335,2.15019467,1944.7,1943.3,3.54979912]
[1772978953536,2.15019467,1944.5,1943.5,3.54979912]
[1772978954037,7.55736735,1944.4,1943.5,3.54979912]
[1772978954232,7.56166492,1944.4,1943.5,3.54979912]
[1772978954535,2.15448662,1944.4,1943.5,3.54979912]
[1772978955332,0.00429757,1944.4,1943.6,3.54979912]
[1772978955831,0.00429757,1944.4,1943.6,16.89797393]
[1772978956030,0.00429757,1944.4,1943.7,3.54979912]
[1772978956530,2.15487613,1944.8,1943.8,3.54979912]
[1772978956934,7.97113951,1944.7,1943.8,3.54979912]
[1772978957136,2.17489125,1944.6,1943.8,3.54979912]
[1772978957331,2.17518781,1944.9,1943.8,3.54979912]